bitfinex/quotes_SOLUSD_20230120
["timestamp","ask_amount","ask_price","bid_price","bid_amount"]
[1674177309303,233.7978,21.131,21.113,20.0]
[1674177309517,233.7978,21.131,21.114,0.96]
[1674177310023,233.7978,21.131,21.115,0.96]
[1674177310237,10.0,21.13,21.115,17.96]
[1674177310453,10.0,21.13,21.116,0.96]
[1674177310658,10.0,21.13,21.116,20.96]
[1674177310873,233.7978,21.131,21.117,17.96]
[1674177311073,233.7978,21.131,21.118,0.96]
[1674177311287,233.7978,21.131,21.118,20.96]
[1674177311496,233.7978,21.131,21.119,17.96]
[1674177311708,233.7978,21.131,21.12,20.0]
[1674177312134,233.7978,21.131,21.121,18.92]
[1674177312556,10.0,21.141,21.121,18.92]
[1674177312766,125.8937,21.14,21.122,20.0]
[1674177312988,125.8937,21.14,21.123,17.96]
[1674177313187,125.8937,21.14,21.124,0.96]
[1674177313402,125.8937,21.14,21.125,0.96]
[1674177313608,125.8937,21.14,21.126,0.96]
[1674177313831,125.8937,21.14,21.127,0.96]
[1674177314679,125.8937,21.14,21.126,0.96]
[1674177314891,125.8937,21.14,21.112,129.8971766]
[1674177315079,10.0,21.138,21.116,20.0]
[1674177315504,1.92,21.137,21.113,20.0]
[1674177316242,1.92,21.137,21.114,18.92]
[1674177316449,1.92,21.137,21.115,20.0]
[1674177316662,1.92,21.137,21.116,18.92]
[1674177317293,1.92,21.137,21.117,20.0]
[1674177317625,1.92,21.137,21.118,18.92]
[1674177317815,10.0,21.138,21.119,20.0]
[1674177318022,115.8937,21.14,21.12,25.09835233]
[1674177318231,115.8937,21.14,21.121,30.96]
[1674177318568,115.8937,21.14,21.122,22.0850786]
[1674177318787,115.8937,21.14,21.124,10.0]
[1674177318995,115.8937,21.14,21.125,38.92]
[1674177319320,115.8937,21.14,21.125,54.00412112]
[1674177320128,10.0,21.152,21.125,38.92]
[1674177320345,112.9615,21.151,21.127,5.59726232]
[1674177320569,112.9615,21.151,21.128,17.96]
[1674177320772,112.9615,21.151,21.129,20.96]
[1674177320974,112.9615,21.151,21.13,17.0]
[1674177321189,10.0,21.15,21.131,20.0]
[1674177321387,10.0,21.15,21.132,17.0]
[1674177321814,10.0,21.15,21.133,20.0]
[1674177322877,10.0,21.15,21.134,17.0]
[1674177323621,10.0,21.15,21.135,1.92]
[1674177324336,10.0,21.15,21.134,17.0]
[1674177326247,10.0,21.141,21.134,17.0]
[1674177326461,10.0,21.15,21.134,17.0]
[1674177327831,10.0,21.141,21.134,17.0]
[1674177330022,10.0,21.141,21.133,20.0]
[1674177330233,10.0,21.141,21.128,20.0]
[1674177330437,10.0,21.141,21.124,20.0]
[1674177330648,10.0,21.141,21.122,35.08412112]
[1674177330859,10.0,21.141,21.123,10.0]
[1674177331172,10.0,21.141,21.124,20.0]
[1674177331377,10.0,21.141,21.125,0.96]
[1674177331607,10.0,21.141,21.126,0.96]
[1674177331815,10.0,21.141,21.127,0.96]
[1674177332025,10.0,21.141,21.128,0.96]
[1674177332241,10.0,21.141,21.129,0.96]
[1674177332464,10.0,21.141,21.13,0.96]
[1674177332663,10.0,21.141,21.131,0.96]
[1674177333190,10.0,21.141,21.131,20.96]
[1674177333390,10.0,21.15,21.131,20.96]
[1674177333391,10.0,21.15,21.132,17.0]
[1674177333718,10.0,21.15,21.133,21.92]
[1674177333914,112.9615,21.151,21.134,17.0]
[1674177334118,112.9615,21.151,21.135,11.92]
[1674177334334,112.9615,21.151,21.136,17.0]
[1674177334654,112.9615,21.151,21.137,21.92]
[1674177334875,112.9615,21.151,21.138,17.0]
[1674177335071,112.9615,21.151,21.139,21.92]
[1674177335281,10.0,21.152,21.14,17.0]
[1674177335491,10.0,21.152,21.141,1.92]
[1674177335717,10.0,21.152,21.141,21.92]
[1674177335911,10.0,21.152,21.142,17.0]
[1674177336117,10.0,21.152,21.143,20.0]
[1674177336334,10.0,21.152,21.141,20.0]
[1674177336650,10.0,21.152,21.134,20.0]
[1674177336852,10.0,21.16,21.135,10.96]
[1674177337067,10.0,21.16,21.135,26.04412112]
[1674177337291,10.0,21.152,21.136,35.08412112]
[1674177337611,10.0,21.152,21.137,34.00412112]
[1674177337831,10.0,21.152,21.138,20.0]
[1674177338011,10.0,21.152,21.139,18.92]
[1674177338221,10.0,21.152,21.14,20.0]
[1674177338433,10.0,21.152,21.141,18.92]
[1674177338639,10.0,21.152,21.142,20.0]
[1674177338856,10.0,21.152,21.143,18.92]
[1674177339186,10.0,21.152,21.144,20.0]
[1674177339500,10.0,21.152,21.145,17.0]
[1674177339692,10.0,21.152,21.146,0.96]
[1674177340341,10.0,21.152,21.147,0.96]
[1674177341067,10.0,21.152,21.144,20.0]
[1674177341266,10.0,21.152,21.14,20.0]
[1674177341579,10.0,21.152,21.136,15.08412112]
[1674177341785,10.0,21.152,21.137,20.0]
[1674177342527,10.0,21.152,21.138,18.92]
[1674177342743,10.0,21.152,21.139,20.0]
[1674177343067,10.0,21.152,21.14,18.92]
[1674177343286,10.0,21.16,21.141,20.0]
[1674177343483,10.0,21.16,21.142,18.92]
[1674177343694,10.0,21.16,21.143,20.0]
[1674177343901,10.0,21.16,21.144,18.92]
[1674177344111,10.0,21.16,21.145,20.0]
[1674177344322,10.0,21.16,21.146,17.0]
[1674177344733,10.0,21.152,21.146,17.0]
[1674177345491,10.0,21.152,21.145,20.0]
[1674177345691,10.0,21.152,21.14,20.0]
[1674177346952,10.0,21.152,21.141,18.92]
[1674177347279,10.0,21.152,21.142,20.0]
[1674177347465,10.0,21.16,21.143,17.0]
[1674177347674,10.0,21.16,21.144,20.96]
[1674177347902,10.0,21.16,21.145,17.96]
[1674177348110,10.0,21.16,21.146,0.96]
[1674177348309,10.0,21.152,21.145,17.0]
[1674177348512,10.0,21.152,21.144,20.0]
[1674177348726,10.0,21.152,21.134,20.0]
[1674177350093,10.0,21.152,21.135,18.92]
[1674177350300,10.0,21.152,21.136,20.0]
[1674177350517,10.0,21.152,21.137,18.92]
[1674177350730,10.0,21.152,21.138,20.0]
[1674177350937,10.0,21.152,21.139,18.92]
[1674177351140,10.0,21.152,21.14,20.0]
[1674177351351,10.0,21.152,21.141,17.0]
[1674177351582,10.0,21.152,21.142,20.0]
[1674177354852,10.0,21.152,21.134,20.0]
[1674177355161,10.0,21.152,21.135,34.00412112]
[1674177355374,10.0,21.152,21.136,20.0]
[1674177355560,10.0,21.152,21.137,18.92]
[1674177355908,10.0,21.152,21.138,20.0]
[1674177356086,10.0,21.152,21.139,17.0]
[1674177356297,10.0,21.152,21.14,20.0]
[1674177356518,10.0,21.152,21.141,17.0]
[1674177356731,10.0,21.152,21.14,20.0]
[1674177356732,10.0,21.152,21.142,20.0]
[1674177357050,10.0,21.152,21.14,20.0]
[1674177357480,10.0,21.152,21.124,6.09146441]
[1674177357685,10.0,21.152,21.124,114.23736441]
[1674177357686,130.3898,21.151,21.124,114.23736441]
[1674177358002,10.0,21.15,21.124,114.23736441]
[1674177358216,18.92,21.149,21.124,108.1459]
[1674177358745,10.0,21.148,21.124,108.1459]
[1674177358935,17.96,21.147,21.124,108.1459]
[1674177359139,10.0,21.148,21.125,39.90581042]
[1674177359356,10.0,21.148,21.126,7.92870295]
[1674177359571,10.0,21.148,21.127,18.92]
[1674177361048,10.0,21.148,21.128,20.0]
[1674177361241,1.92,21.147,21.129,18.92]
[1674177361575,1.92,21.147,21.13,20.0]
[1674177361789,1.92,21.147,21.131,18.92]
[1674177362212,1.92,21.147,21.132,20.0]
[1674177362417,10.0,21.148,21.133,17.0]
[1674177362941,10.0,21.148,21.131,18.92]
[1674177363263,10.0,21.15,21.132,20.0]
[1674177363577,10.0,21.15,21.133,18.92]
[1674177363789,10.0,21.15,21.134,20.0]
[1674177363990,10.0,21.15,21.135,18.92]
[1674177364205,10.0,21.15,21.136,20.0]
[1674177364417,10.0,21.15,21.137,18.92]
[1674177364606,10.0,21.15,21.138,20.0]
[1674177364820,10.0,21.15,21.139,18.92]
[1674177365148,111.4698,21.151,21.139,18.92]
[1674177365467,10.0,21.161,21.14,26.28354337]
[1674177365664,10.0,21.161,21.141,18.92]
[1674177366091,10.0,21.161,21.142,20.0]
[1674177366304,10.0,21.161,21.143,18.92]
[1674177369576,1.92,21.159,21.143,18.92]
[1674177371254,10.0,21.161,21.143,18.92]
[1674177374192,112.2088,21.162,21.143,18.92]
[1674177374402,108.8712,21.175,21.145,5.71474977]
[1674177374626,128.4465,21.174,21.146,11.92]
[1674177374937,128.4465,21.174,21.146,48.92]
[1674177375339,23.75576951,21.173,21.146,20.0]
[1674177375578,10.0,21.163,21.146,20.0]
[1674177375886,10.0,21.163,21.144,20.0]
[1674177376417,10.0,21.163,21.145,10.0]
[1674177376602,10.0,21.163,21.146,38.92]
[1674177377351,10.0,21.172,21.147,10.0]
[1674177377547,10.0,21.172,21.148,18.92]
[1674177377757,10.0,21.172,21.149,20.0]
[1674177377963,10.0,21.172,21.15,18.92]
[1674177378187,10.0,21.172,21.151,20.0]
[1674177378412,10.0,21.172,21.152,18.92]
[1674177378636,10.0,21.172,21.153,20.0]
[1674177378844,10.0,21.172,21.154,17.0]
[1674177379239,10.0,21.172,21.155,20.0]
[1674177379460,10.0,21.172,21.156,17.0]
[1674177380416,33.75576951,21.172,21.155,20.0]
[1674177380729,33.75576951,21.172,21.144,10.0]
[1674177380730,10.96,21.163,21.146,20.0]
[1674177380916,10.96,21.163,21.144,20.0]
[1674177381981,10.96,21.163,21.145,18.92]
[1674177382197,10.96,21.163,21.146,20.0]
[1674177382408,10.96,21.163,21.147,18.92]
[1674177382599,10.96,21.163,21.148,20.0]
[1674177382811,10.96,21.163,21.149,17.0]
[1674177383461,10.96,21.163,21.15,20.0]
[1674177383656,10.96,21.163,21.151,17.96]
[1674177383657,10.0,21.163,21.151,17.96]
[1674177383863,10.0,21.163,21.152,20.96]
[1674177384083,10.0,21.163,21.153,17.0]
[1674177384614,10.0,21.163,21.151,17.0]
[1674177384829,10.0,21.163,21.152,20.0]
[1674177386201,10.0,21.163,21.153,17.96]
[1674177386396,10.0,21.163,21.153,17.0]
[1674177387655,10.0,21.163,21.154,1.92]
[1674177388820,10.0,21.163,21.153,17.0]
[1674177389130,10.0,21.163,21.154,1.92]
[1674177389741,217.29529801,21.219,21.155,15.08412112]
[1674177390080,110.1755,21.184,21.156,122.39836154]
[1674177390292,10.0,21.183,21.158,15.1749955]
[1674177390810,10.0,21.183,21.159,38.92]
[1674177391649,10.0,21.183,21.159,21.92]
[1674177391847,10.0,21.183,21.159,1.92]
[1674177392478,0.96,21.182,21.159,1.92]
[1674177392689,0.96,21.182,21.159,21.92]
[1674177393127,0.96,21.182,21.16,17.0]
[1674177393319,0.96,21.182,21.161,1.92]
[1674177393528,0.96,21.182,21.161,21.92]
[1674177393740,0.96,21.182,21.162,17.0]
[1674177393963,0.96,21.181,21.163,1.92]
[1674177394283,10.0,21.183,21.163,21.92]
[1674177394496,10.0,21.183,21.164,17.0]
[1674177394828,10.0,21.183,21.165,21.92]
[1674177395044,10.0,21.183,21.166,17.0]
[1674177395247,10.0,21.185,21.168,10.0]
[1674177395457,10.0,21.185,21.169,37.96]
[1674177395653,10.0,21.185,21.17,0.96]
[1674177395866,10.0,21.185,21.171,0.96]
[1674177396084,10.0,21.185,21.171,20.0]
[1674177396710,1.92,21.184,21.171,20.0]
[1674177397667,10.0,21.183,21.171,20.0]
[1674177397980,1.92,21.182,21.166,20.0]
[1674177398175,10.0,21.192,21.167,18.00447393]
[1674177398390,10.0,21.185,21.167,8.00447393]
[1674177398717,10.0,21.185,21.168,37.96]
[1674177398923,10.0,21.185,21.168,17.96]
[1674177399117,10.0,21.185,21.169,20.0]
[1674177399323,10.0,21.185,21.17,17.0]
[1674177399649,0.96,21.184,21.17,17.0]
[1674177399856,0.96,21.183,21.171,20.0]
[1674177400066,0.96,21.182,21.171,20.0]
[1674177400499,0.96,21.182,21.161,5.40557582]
[1674177400686,17.96,21.182,21.162,20.0]
[1674177400902,10.96,21.181,21.154,124.75012112]
[1674177401123,10.0,21.181,21.156,10.0]
[1674177401338,10.0,21.179,21.156,10.0]
[1674177401534,10.0,21.179,21.157,15.08412112]
[1674177401742,10.0,21.179,21.157,21.52338443]
[1674177402172,10.0,21.179,21.158,10.0]
[1674177402482,10.0,21.179,21.159,15.08412112]
[1674177402815,10.0,21.179,21.16,7.13428106]
[1674177403126,10.0,21.179,21.161,17.96]
[1674177403313,10.0,21.179,21.162,20.96]
[1674177403524,10.0,21.179,21.163,17.96]
[1674177403762,10.0,21.179,21.164,20.96]
[1674177404063,10.0,21.179,21.165,17.96]
[1674177404254,10.0,21.179,21.166,20.96]
[1674177404468,10.0,21.179,21.167,17.96]
[1674177404693,10.0,21.179,21.167,17.0]
[1674177408166,4.5,21.179,21.167,17.0]
[1674177409016,10.0,21.181,21.167,17.0]
[1674177409230,10.0,21.181,21.168,1.92]
[1674177409547,118.979,21.183,21.168,1.92]
[1674177409739,118.979,21.183,21.168,21.92]
[1674177409950,118.979,21.183,21.169,17.0]
[1674177410181,108.979,21.183,21.17,21.92]
[1674177410380,108.979,21.183,21.171,17.0]
[1674177410593,108.979,21.183,21.172,0.96]
[1674177410916,108.979,21.183,21.172,21.92]
[1674177411114,108.979,21.183,21.173,17.0]
[1674177411322,108.979,21.183,21.174,20.0]
[1674177411522,10.0,21.185,21.175,17.0]
[1674177411968,10.0,21.185,21.173,17.0]
[1674177412179,10.0,21.185,21.174,20.0]
[1674177412494,10.0,21.185,21.175,17.0]
[1674177412703,10.0,21.19,21.175,17.0]
[1674177413023,10.0,21.19,21.176,1.92]
[1674177413625,10.0,21.185,21.176,1.92]
[1674177414812,10.0,21.185,21.174,20.0]
[1674177415021,10.0,21.185,21.166,20.0]
[1674177415335,10.0,21.185,21.167,0.96]
[1674177415644,10.0,21.185,21.166,20.0]
[1674177415837,1.92,21.184,21.166,20.0]
[1674177416259,18.92,21.184,21.164,20.0]
[1674177416569,10.0,21.182,21.155,4.12181637]
[1674177416779,1.92,21.181,21.155,4.12181637]
[1674177418886,10.0,21.182,21.156,18.92]
[1674177419100,10.0,21.182,21.157,14.38177482]
[1674177419310,10.0,21.182,21.159,6.94308296]
[1674177419526,10.0,21.182,21.16,37.96]
[1674177419743,10.0,21.182,21.161,0.96]
[1674177419943,119.5248,21.183,21.162,0.96]
[1674177420271,119.5248,21.183,21.163,0.96]
[1674177420482,10.0,21.185,21.164,0.96]
[1674177420692,10.0,21.188,21.165,10.96]
[1674177421006,114.7573,21.189,21.168,10.0]
[1674177421207,114.7573,21.189,21.169,21.92]
[1674177421405,114.7573,21.189,21.17,17.0]
[1674177421615,114.7573,21.189,21.171,0.96]
[1674177421846,10.0,21.185,21.171,21.92]
[1674177422159,10.0,21.185,21.172,17.0]
[1674177422376,10.0,21.185,21.173,1.92]
[1674177422564,10.0,21.185,21.173,20.0]
[1674177424157,10.0,21.185,21.174,17.96]
[1674177425818,10.0,21.188,21.174,17.96]
[1674177426674,114.7573,21.189,21.174,17.96]
[1674177426866,114.7573,21.189,21.175,0.96]
[1674177427077,24.60078996,21.222,21.176,0.96]
[1674177427408,111.3617,21.206,21.177,0.96]
[1674177427728,111.3617,21.206,21.178,0.96]
[1674177427936,10.0,21.205,21.179,0.96]
[1674177428143,10.0,21.205,21.18,0.96]
[1674177428344,10.0,21.205,21.181,0.96]
[1674177428555,10.0,21.205,21.182,0.96]
[1674177428782,10.0,21.205,21.182,16.71427605]
[1674177428983,10.0,21.205,21.183,0.96]
[1674177429203,10.0,21.205,21.184,0.96]
[1674177429726,10.0,21.205,21.184,20.96]
[1674177429942,10.0,21.205,21.185,17.0]
[1674177431176,10.0,21.196,21.185,17.0]
[1674177433722,10.0,21.205,21.185,17.0]
[1674177433928,10.0,21.205,21.186,1.92]
[1674177434245,10.0,21.205,21.186,37.67427605]
[1674177434459,10.0,21.205,21.187,32.75427605]
[1674177434658,10.0,21.205,21.188,21.92]
[1674177434868,10.0,21.205,21.189,17.0]
[1674177435097,10.0,21.205,21.19,0.96]
[1674177435310,10.0,21.205,21.19,21.92]
[1674177435503,10.0,21.205,21.191,17.0]
[1674177435715,10.0,21.205,21.192,20.0]
[1674177435938,10.0,21.205,21.193,17.0]
[1674177436145,10.0,21.205,21.194,20.0]
[1674177436761,10.0,21.205,21.189,20.0]
[1674177437080,10.0,21.205,21.19,17.0]
[1674177437300,10.0,21.205,21.191,20.0]
[1674177441715,10.0,21.205,21.185,20.0]
[1674177441927,10.0,21.205,21.186,18.92]
[1674177442136,10.0,21.205,21.187,20.0]
[1674177442354,10.0,21.205,21.188,17.0]
[1674177442757,10.0,21.205,21.189,20.0]
[1674177443184,10.0,21.205,21.19,17.0]
[1674177443400,10.0,21.205,21.191,20.0]
[1674177443825,10.0,21.205,21.189,20.0]
[1674177443826,1.92,21.204,21.189,20.0]
[1674177444025,18.92,21.204,21.175,10.0]
[1674177444256,27.75671951,21.203,21.167,5.16368905]
[1674177444444,27.75671951,21.203,21.167,20.9179651]
[1674177444654,18.92,21.202,21.168,15.75427605]
[1674177444881,10.0,21.201,21.168,15.75427605]
[1674177445095,18.92,21.2,21.168,15.75427605]
[1674177445284,18.92,21.2,21.17,5.19507698]
[1674177445497,10.0,21.199,21.17,5.19507698]
[1674177445814,10.0,21.199,21.172,15.9473258]
[1674177446048,115.7738,21.198,21.173,18.92]
[1674177446233,10.0,21.197,21.174,4.50811137]
[1674177446565,10.0,21.197,21.175,18.92]
[1674177446778,126.155,21.197,21.176,5.6326296]
[1674177446980,126.155,21.197,21.176,21.38690565]
[1674177447201,126.155,21.197,21.177,54.67427605]
[1674177447606,126.155,21.197,21.178,15.75427605]
[1674177447815,126.155,21.197,21.179,38.92]
[1674177448228,0.96,21.196,21.179,20.0]
[1674177448647,0.96,21.196,21.175,20.0]
[1674177448863,126.155,21.197,21.175,20.0]
[1674177449189,126.155,21.197,21.176,15.75427605]
[1674177449405,126.155,21.197,21.177,20.0]
[1674177449605,0.96,21.196,21.176,15.75427605]
[1674177449827,1.92,21.196,21.167,5.42734533]
[1674177450025,1.92,21.196,21.171,15.75427605]
[1674177450026,18.92,21.196,21.171,15.75427605]
[1674177450342,10.0,21.195,21.171,15.75427605]
[1674177450561,18.92,21.194,21.171,15.75427605]
[1674177450765,10.0,21.193,21.166,5.21665895]
[1674177450959,1.92,21.192,21.165,116.866]
[1674177451171,18.92,21.192,21.166,20.0]
[1674177451379,10.0,21.191,21.166,20.0]
[1674177451607,10.0,21.189,21.166,20.0]
[1674177451820,0.96,21.188,21.166,20.0]
[1674177452450,0.96,21.187,21.167,18.92]
[1674177452663,0.96,21.187,21.168,20.0]
[1674177452858,0.96,21.186,21.168,20.0]
[1674177453059,0.96,21.185,21.168,20.0]
[1674177453272,4.00095,21.184,21.157,20.0]
[1674177453478,4.00095,21.184,21.133,4.6921893]
[1674177453479,147.26095,21.184,21.133,4.6921893]
[1674177453709,10.0,21.182,21.134,14.99031073]
[1674177454028,22.92095,21.181,21.135,51.19688029]
[1674177454238,4.00095,21.18,21.136,7.19315764]
[1674177454449,1.92,21.179,21.136,46.33887719]
[1674177454631,4.00095,21.178,21.137,57.29887719]
[1674177454863,11.92,21.177,21.138,27.96]
[1674177455071,17.0,21.176,21.139,20.0]
[1674177455390,15.92095,21.175,21.139,46.33887719]
[1674177455615,15.92095,21.175,21.14,46.33887719]
[1674177455616,10.0,21.173,21.14,46.33887719]
[1674177455929,10.0,21.171,21.14,46.33887719]
[1674177456129,118.9529,21.17,21.14,46.33887719]
[1674177456346,117.0329,21.17,21.14,46.33887719]
[1674177456544,10.0,21.169,21.14,46.33887719]
[1674177456754,10.0,21.169,21.141,20.0]
[1674177456972,1.92,21.168,21.141,20.0]
[1674177457203,1.92,21.168,21.142,46.33887719]
[1674177457404,10.0,21.167,21.143,118.8051]
[1674177457614,1.92,21.166,21.143,118.8051]
[1674177457932,10.0,21.167,21.143,118.8051]
[1674177458559,10.0,21.167,21.144,17.96]
[1674177458772,10.0,21.167,21.145,20.96]
[1674177458987,10.0,21.167,21.146,17.96]
[1674177459171,10.0,21.167,21.147,20.96]
[1674177459383,10.0,21.167,21.148,17.96]
[1674177459593,10.0,21.167,21.149,20.96]
[1674177459801,10.0,21.167,21.15,17.96]
[1674177460036,10.0,21.167,21.151,0.96]
[1674177460233,10.0,21.167,21.152,0.96]
[1674177460437,10.0,21.167,21.153,0.96]
[1674177460647,10.0,21.167,21.153,20.96]
[1674177460857,10.0,21.167,21.154,17.0]
[1674177461912,10.0,21.167,21.155,1.92]
[1674177463166,47.06066218,21.18,21.155,21.92]
[1674177463410,117.9562,21.178,21.157,10.0]
[1674177463594,117.9562,21.178,21.158,18.92]
[1674177463807,117.9562,21.178,21.159,20.0]
[1674177464015,117.9562,21.178,21.16,18.92]
[1674177464214,117.9562,21.178,21.161,20.0]
[1674177464423,117.9562,21.178,21.162,17.96]
[1674177464643,117.9562,21.178,21.161,20.0]
[1674177465369,117.9562,21.178,21.156,20.0]
[1674177466131,1.92,21.174,21.151,20.0]
[1674177467170,1.92,21.174,21.152,17.96]
[1674177467367,1.92,21.174,21.153,20.96]
[1674177467583,1.92,21.174,21.154,17.96]
[1674177467800,1.92,21.174,21.155,20.0]
[1674177468009,1.92,21.174,21.156,17.0]
[1674177468443,10.0,21.173,21.147,115.0778]
[1674177468639,1.92,21.172,21.147,115.0778]
[1674177468976,10.0,21.171,21.147,115.0778]
[1674177469188,1.92,21.17,21.147,115.0778]
[1674177469582,18.92,21.17,21.147,115.0778]
[1674177469902,10.0,21.169,21.147,115.0778]
[1674177470106,1.92,21.168,21.147,115.0778]
[1674177470318,1.92,21.168,21.148,20.0]
[1674177470534,129.1016,21.169,21.148,20.0]
[1674177470761,129.1016,21.169,21.149,0.96]
[1674177471065,129.1016,21.169,21.15,0.96]
[1674177471280,129.1016,21.169,21.151,0.96]
[1674177471484,129.1016,21.169,21.152,0.96]
[1674177472106,0.96,21.168,21.151,17.96]
[1674177472319,0.96,21.168,21.152,20.0]
[1674177472527,0.96,21.168,21.153,17.96]
[1674177472759,0.96,21.168,21.154,20.0]
[1674177472947,0.96,21.167,21.152,20.0]
[1674177473281,129.1016,21.169,21.152,20.0]
[1674177473491,0.96,21.168,21.152,20.0]
[1674177473686,1.92,21.168,21.149,10.0]
[1674177473899,1.92,21.168,21.15,20.0]
[1674177474108,1.92,21.168,21.151,0.96]
[1674177474332,129.1016,21.169,21.151,18.92]
[1674177474836,129.1016,21.169,21.153,10.0]
[1674177475048,129.1016,21.169,21.154,38.92]
[1674177475276,129.1016,21.169,21.154,74.38]
[1674177475699,129.1016,21.169,21.155,35.46]
[1674177475896,129.1016,21.169,21.156,17.96]
[1674177476114,0.96,21.168,21.154,20.0]
[1674177476322,0.96,21.168,21.148,35.47]
[1674177476323,0.96,21.167,21.149,20.0]
[1674177476524,0.96,21.166,21.149,20.0]
[1674177476955,0.96,21.165,21.149,20.0]
[1674177477149,0.96,21.164,21.149,20.0]
[1674177477391,0.96,21.163,21.148,20.0]
[1674177477569,0.96,21.162,21.148,20.0]
[1674177478835,0.96,21.162,21.149,17.0]
[1674177479057,0.96,21.162,21.15,20.0]
[1674177479573,0.96,21.161,21.15,20.0]
[1674177479784,0.96,21.16,21.149,20.0]
[1674177479997,0.96,21.16,21.142,55.48]
[1674177480206,0.96,21.16,21.143,17.96]
[1674177480412,0.96,21.16,21.144,55.47]
[1674177480644,0.96,21.159,21.145,17.0]
[1674177480830,0.96,21.158,21.145,17.0]
[1674177481043,0.96,21.158,21.146,20.0]
[1674177482122,0.96,21.158,21.145,17.0]
[1674177483158,10.0,21.161,21.141,119.8644]
[1674177483373,10.0,21.161,21.142,36.44]
[1674177484113,10.0,21.161,21.143,20.0]
[1674177484508,1.92,21.16,21.144,17.96]
[1674177484721,1.92,21.16,21.145,0.96]
[1674177485680,1.92,21.16,21.144,17.96]
[1674177486307,1.92,21.16,21.143,20.0]
[1674177486511,35.45,21.159,21.143,20.0]
[1674177486734,0.96,21.158,21.134,20.0]
[1674177486927,0.96,21.157,21.135,35.49]
[1674177487133,0.96,21.156,21.136,20.0]
[1674177487349,0.96,21.155,21.137,35.49]
[1674177487568,0.96,21.154,21.138,20.0]
[1674177487782,0.96,21.153,21.138,20.0]
[1674177488191,115.0379,21.153,21.135,20.0]
[1674177488399,10.0,21.152,21.136,35.49]
[1674177488631,10.0,21.152,21.137,37.96]